lending/lending_fUSD_20250917
["ID","MTS","AMOUNT","RATE_DAILY","PERIOD"]
[385935422,1758137472220,-464.39,0.00023286,2]
[385935423,1758137472230,-400.0,0.00023286,2]
[385935424,1758137472239,-400.0,0.00023286,2]
[385935425,1758137472249,-427.47,0.00023286,2]
[385935426,1758137472258,-400.0,0.00023286,2]
[385935427,1758137472268,-256.33546519,0.00023286,2]
[385935428,1758137472279,-411.21748278,0.00023286,2]
[385935429,1758137472294,-400.0,0.00023286,2]
[385935430,1758137472304,-400.0,0.00023286,2]
[385935431,1758137472314,-400.0,0.00023286,2]
[385935432,1758137472324,-400.0,0.00023287,2]
[385935433,1758137472334,-400.0,0.00023287,2]
[385935434,1758137472344,-400.0,0.00023287,2]
[385935435,1758137472354,-602.7,0.00023287,2]
[385935436,1758137472365,-400.0,0.00023287,2]
[385935437,1758137472375,-435.38,0.00023287,2]
[385935438,1758137472386,-400.0,0.00023287,2]
[385935439,1758137472396,-400.0,0.00023287,2]
[385935440,1758137472406,-454.19772302,0.00023287,2]
[385935441,1758137472416,-400.0,0.00023287,2]
[385935442,1758137472426,-400.0,0.00023287,2]
[385935443,1758137472436,-400.0,0.00023287,2]
[385935444,1758137472448,-400.0,0.00023287,2]
[385935445,1758137472459,-3002.02,0.00023287,2]
[385935446,1758137472470,-400.0,0.00023287,2]
[385935447,1758137472480,-400.0,0.00023287,2]
[385935448,1758137472490,-362.71249213,0.00023287,2]
[385935449,1758137472499,-400.0,0.00023287,2]
[385935450,1758137472509,-400.0,0.00023287,2]
[385935451,1758137472519,-400.0,0.00023287,2]
[385935452,1758137472529,-400.0,0.00023287,2]
[385935453,1758137472539,-400.0,0.00023287,2]
[385935454,1758137472548,-400.0,0.00023287,2]
[385935455,1758137472558,-400.0,0.00023287,2]
[385935456,1758137472568,-400.0,0.00023287,2]
[385935457,1758137472578,-400.0,0.00023287,2]
[385935458,1758137472588,-400.0,0.00023287,2]
[385935459,1758137472598,-400.0,0.00023287,2]
[385935460,1758137472608,-450.53,0.00023287,2]
[385935461,1758137472617,-400.0,0.00023287,2]
[385935462,1758137472627,-400.0,0.00023287,2]
[385935463,1758137472637,-400.0,0.00023287,2]
[385935464,1758137472647,-400.0,0.00023287,2]
[385935465,1758137472657,-400.0,0.00023287,2]
[385935466,1758137472666,-400.0,0.00023287,2]
[385935467,1758137472676,-403.85,0.00023287,2]
[385935468,1758137472686,-747.86,0.00023287,2]
[385935469,1758137472703,-531.56,0.00023287,2]
[385935470,1758137472713,-671.74,0.00023287,2]
[385935471,1758137472723,-400.0,0.00023287,2]
[385935472,1758137472732,-400.0,0.00023287,2]
[385935473,1758137472742,-400.0,0.00023287,2]
[385935474,1758137472753,-186.15525521,0.00023287,2]
[385935475,1758137472763,-3263.67,0.00023287,2]
[385935476,1758137472773,-400.0,0.00023287,2]
[385935477,1758137472783,-493.88,0.00023287,2]
[385935478,1758137472794,-568.43,0.00023287,2]
[385935479,1758137472804,-400.0,0.00023287,2]
[385935480,1758137472814,-400.0,0.00023287,2]
[385935481,1758137472828,-454.87,0.00023287,2]
[385935482,1758137472838,-400.0,0.00023287,2]
[385935483,1758137472848,-427.05,0.00023287,2]
[385935484,1758137472858,-400.0,0.00023287,2]
[385935485,1758137472869,-400.0,0.00023287,2]
[385935486,1758137472879,-688.11,0.00023287,2]
[385935487,1758137472890,-461.23,0.00023287,2]
[385935488,1758137472902,-400.0,0.00023287,2]
[385935489,1758137472914,-445.65,0.00023287,2]
[385935490,1758137472924,-569.96,0.00023287,2]
[385935491,1758137472934,-441.98,0.00023287,2]
[385935492,1758137472944,-400.0,0.00023287,2]
[385935493,1758137472957,-454.48,0.00023287,2]
[385935494,1758137472967,-463.35,0.00023287,2]
[385935495,1758137472977,-400.0,0.00023287,2]
[385935496,1758137472987,-400.0,0.00023287,2]
[385935497,1758137472997,-492.3,0.00023287,2]
[385935498,1758137473006,-677.36,0.00023287,2]
[385935499,1758137473016,-400.0,0.00023287,2]
[385935500,1758137473026,-400.0,0.00023287,2]
[385935501,1758137473035,-413.4,0.00023287,2]
[385935502,1758137473045,-400.0,0.00023287,2]
[385935503,1758137473055,-796.26,0.00023287,2]
[385935504,1758137473065,-400.0,0.00023287,2]
[385935505,1758137473074,-400.0,0.00023287,2]
[385935506,1758137473084,-2727.12,0.00023287,2]
[385935507,1758137473094,-400.0,0.00023287,2]
[385935508,1758137473109,-518.36,0.00023287,2]
[385935509,1758137473119,-400.0,0.00023287,2]
[385935510,1758137473130,-469.33,0.00023287,2]
[385935511,1758137473140,-400.0,0.00023287,2]
[385935512,1758137473150,-400.0,0.00023287,2]
[385935513,1758137473160,-400.0,0.00023287,2]
[385935514,1758137473170,-400.0,0.00023287,2]
[385935515,1758137473180,-400.0,0.00023287,2]
[385935516,1758137473191,-400.0,0.00023287,2]
[385935517,1758137473203,-400.0,0.00023287,2]
[385935518,1758137473213,-586.66,0.00023287,2]
[385935519,1758137473224,-430.47,0.00023287,2]
[385935520,1758137473234,-400.0,0.00023287,2]
[385935521,1758137473245,-400.0,0.00023287,2]
[385935522,1758137473255,-500.0,0.00023321,2]
[385935523,1758137473265,-500.0,0.00023321,2]
[385935524,1758137473276,-159.83504522,0.00023364,2]
[385935525,1758137473286,-500.0,0.00023368,2]
[385935526,1758137473296,-500.0,0.00023368,2]
[385935527,1758137473306,-400.0,0.00023368,2]
[385935528,1758137473316,-400.0,0.00023368,2]
[385935529,1758137473326,-400.0,0.00023368,2]
[385935530,1758137473336,-575.48,0.00023368,2]
[385935531,1758137473347,-400.0,0.00023368,2]
[385935532,1758137473357,-400.0,0.00023368,2]
[385935533,1758137473367,-765.76,0.00023368,2]
[385935534,1758137473376,-400.0,0.00023368,2]
[385935535,1758137473386,-400.0,0.00023368,2]
[385935536,1758137473398,-400.0,0.00023368,2]
[385935537,1758137473408,-400.0,0.00023368,2]
[385935538,1758137473418,-177.139291,0.00023368,2]
[385935539,1758137473428,-244.040939,0.00023368,2]
[385935540,1758137473437,-386.251879,0.00023368,2]
[385935541,1758137473449,-1073.87,0.00023368,2]
[385935542,1758137473459,-400.0,0.00023368,2]
[385935543,1758137473469,-535.0,0.00023368,2]
[385935544,1758137473480,-459.71,0.00023368,2]
[385935545,1758137473490,-400.0,0.00023368,2]
[385935546,1758137473501,-400.0,0.00023368,2]
[385935547,1758137473510,-400.0,0.00023368,2]
[385935548,1758137473524,-400.0,0.00023368,2]
[385935549,1758137473535,-542.92,0.00023368,2]
[385935550,1758137473545,-400.0,0.00023368,2]
[385935551,1758137473555,-538.28,0.00023368,2]
[385935552,1758137473564,-400.0,0.00023368,2]
[385935553,1758137473575,-400.0,0.00023368,2]
[385935554,1758137473585,-476.01,0.00023368,2]
[385935555,1758137473595,-400.0,0.00023368,2]
[385935556,1758137473605,-1008.77,0.00023368,2]
[385935557,1758137473615,-400.0,0.00023368,2]
[385935558,1758137473625,-763.58,0.00023368,2]
[385935559,1758137473634,-400.0,0.00023368,2]
[385935560,1758137473644,-400.0,0.00023368,2]
[385935561,1758137473654,-400.0,0.00023368,2]
[385935562,1758137473664,-400.0,0.00023368,2]
[385935563,1758137473674,-1279.58,0.00023368,2]
[385935564,1758137473683,-449.94,0.00023368,2]
[385935565,1758137473694,-151.0,0.00023368,7]
[385935566,1758137473707,-435.9,0.00023368,2]
[385935567,1758137473717,-400.0,0.00023368,2]
[385935568,1758137473728,-551.94,0.00023368,2]
[385935569,1758137473738,-505.47,0.00023368,2]
[385935570,1758137473748,-400.0,0.00023368,2]
[385935571,1758137473761,-400.0,0.00023368,2]
[385935572,1758137473771,-400.0,0.00023368,2]
[385935573,1758137473781,-156.47743843,0.00023368,2]
[385935574,1758137473791,-400.0,0.00023368,2]
[385935575,1758137473801,-542.84,0.00023368,2]
[385935576,1758137473811,-400.0,0.00023368,2]
[385935577,1758137473823,-565.74,0.00023368,2]
[385935578,1758137473834,-400.0,0.00023368,2]
[385935579,1758137473844,-400.0,0.00023368,2]
[385935580,1758137473854,-461.5,0.00023368,2]
[385935581,1758137473865,-400.0,0.00023368,2]
[385935582,1758137473875,-728.72,0.00023368,2]
[385935583,1758137473885,-1073.76,0.00023368,2]
[385935584,1758137473896,-400.0,0.00023368,2]
[385935585,1758137473906,-400.0,0.00023368,2]
[385935586,1758137473916,-400.0,0.00023368,2]
[385935587,1758137473926,-400.0,0.00023368,2]
[385935588,1758137473935,-455.35,0.00023368,2]
[385935589,1758137473945,-400.0,0.00023368,2]
[385935590,1758137473957,-1019.68,0.00023368,2]
[385935591,1758137473967,-511.63,0.00023368,2]
[385935592,1758137473977,-972.93,0.00023368,2]
[385935593,1758137473986,-400.0,0.00023368,2]
[385935594,1758137473996,-1906.2,0.00023368,2]
[385935595,1758137474006,-400.0,0.00023368,2]
[385935596,1758137474017,-400.0,0.00023368,2]
[385935597,1758137474027,-400.0,0.00023368,2]
[385935598,1758137474038,-7460.96,0.00023368,2]
[385935599,1758137474048,-400.0,0.00023368,2]
[385935600,1758137474058,-400.0,0.00023368,2]
[385935601,1758137474068,-400.0,0.00023368,2]
[385935602,1758137474078,-3359.33,0.00023368,2]
[385935603,1758137474089,-400.0,0.00023368,2]
[385935604,1758137474099,-485.76,0.00023368,2]
[385935605,1758137474109,-400.0,0.00023369,2]
[385935606,1758137474119,-400.0,0.00023369,2]
[385935607,1758137474128,-400.0,0.00023369,2]
[385935608,1758137474138,-400.0,0.00023369,2]
[385935609,1758137474148,-499.98,0.00023369,2]
[385935610,1758137474157,-554.96,0.00023369,2]
[385935611,1758137474167,-400.0,0.00023369,2]
[385935612,1758137474176,-400.0,0.00023369,2]
[385935613,1758137474186,-505.29005788,0.00023369,2]
[385935614,1758137474195,-400.0,0.00023369,2]
[385935615,1758137474206,-400.0,0.00023369,2]
[385935616,1758137474216,-400.0,0.00023369,2]
[385935617,1758137474226,-400.0,0.00023369,2]
[385935618,1758137474236,-400.0,0.00023369,2]
[385935619,1758137474246,-475.73294591,0.00023369,2]
[385935620,1758137474255,-400.0,0.00023369,2]
[385935621,1758137474265,-400.0,0.00023369,2]
[385935622,1758137474275,-400.0,0.00023369,2]
[385935623,1758137474284,-400.0,0.00023369,2]
[385935624,1758137474294,-400.0,0.00023369,2]
[385935625,1758137474304,-400.0,0.00023369,2]
[385935626,1758137474314,-400.0,0.00023369,2]
[385935627,1758137474323,-400.0,0.00023369,2]
[385935628,1758137474333,-400.0,0.00023369,2]
[385935629,1758137474343,-400.0,0.00023369,2]
[385935630,1758137474352,-400.0,0.00023369,2]
[385935631,1758137474361,-400.0,0.00023369,2]
[385935632,1758137474371,-400.0,0.00023369,2]
[385935633,1758137474380,-400.0,0.00023369,2]
[385935634,1758137474390,-400.0,0.00023369,2]
[385935635,1758137474399,-400.0,0.00023369,2]
[385935636,1758137474409,-400.0,0.00023369,2]
[385935637,1758137474419,-422.78,0.00023369,2]
[385935638,1758137474428,-400.0,0.00023369,2]
[385935639,1758137474438,-711.68,0.00023369,2]
[385935640,1758137474448,-501.32,0.00023369,2]
[385935641,1758137474457,-400.0,0.00023369,2]
[385935642,1758137474467,-380.77985788,0.00023369,2]
[385935643,1758137474585,-400.0,0.00023369,2]
[385935644,1758137474595,-400.0,0.00023369,2]
[385935645,1758137474605,-400.0,0.00023369,2]
[385935646,1758137474614,-400.0,0.00023369,2]
[385935647,1758137474623,-437.82,0.00023369,2]
[385935648,1758137474632,-400.0,0.00023369,2]
[385935649,1758137474642,-400.0,0.00023369,2]
[385935650,1758137474652,-400.0,0.00023369,2]
[385935651,1758137474662,-400.0,0.00023369,2]
[385935652,1758137474671,-400.0,0.00023369,2]
[385935653,1758137474680,-400.0,0.00023369,2]
[385935654,1758137474690,-400.0,0.00023369,2]
[385935655,1758137474703,-400.0,0.00023369,2]
[385935656,1758137474713,-400.0,0.00023369,2]
[385935657,1758137474722,-468.8,0.00023369,2]
[385935658,1758137474731,-400.0,0.00023369,2]
[385935659,1758137474741,-939.92,0.00023369,2]
[385935660,1758137474750,-400.0,0.00023369,2]
[385935661,1758137474760,-462.35,0.00023369,2]
[385935662,1758137474768,-1108.83,0.00023369,2]
[385935663,1758137474778,-587.56,0.00023369,2]
[385935664,1758137474787,-820.14,0.00023369,2]
[385935665,1758137474797,-1781.73,0.00023369,2]
[385935666,1758137474806,-564.62,0.00023369,2]
[385935667,1758137474817,-400.0,0.00023369,2]
[385935668,1758137474831,-400.0,0.00023369,2]
[385935669,1758137474841,-454.8,0.00023369,2]
[385935670,1758137474852,-400.0,0.00023369,2]
[385935671,1758137474862,-400.0,0.00023369,2]
[385935672,1758137474871,-419.62,0.00023369,2]
[385935673,1758137474881,-514.56,0.00023369,2]
[385935674,1758137474891,-471.22,0.00023369,2]
[385935675,1758137474901,-443.87,0.00023369,2]
[385935676,1758137474911,-719.15,0.00023369,2]
[385935677,1758137474920,-546.46,0.00023369,2]
[385935678,1758137474932,-411.01,0.00023369,2]
[385935679,1758137474941,-427.78589864,0.00023369,2]
[385935680,1758137474952,-769.33,0.00023369,2]
[385935681,1758137474962,-450.77,0.00023369,2]
[385935682,1758137474971,-1734.54,0.00023369,2]
[385935683,1758137474981,-1923.29,0.00023369,2]
[385935684,1758137474991,-400.0,0.00023369,2]
[385935685,1758137475001,-411.58,0.00023369,2]
[385935686,1758137475010,-431.89,0.00023369,2]
[385935687,1758137475020,-733.95,0.00023369,2]
[385935688,1758137475030,-400.0,0.00023369,2]
[385935689,1758137475039,-3546.51,0.00023369,2]
[385935690,1758137475049,-935.65,0.00023369,2]
[385935691,1758137475059,-957.93,0.00023369,2]
[385935692,1758137475069,-315.6631657,0.00023369,2]
[385935693,1758137475079,-405.32,0.00023369,2]
[385935694,1758137475088,-489.76,0.00023369,2]
[385935695,1758137475098,-535.24,0.00023369,2]
[385935696,1758137475107,-400.0,0.00023369,2]
[385935697,1758137475117,-491.18,0.00023369,2]
[385935698,1758137475126,-780.29,0.00023369,2]
[385935699,1758137475136,-706.88,0.00023369,2]
[385935700,1758137475145,-400.0,0.00023369,2]
[385935701,1758137475154,-647.97,0.00023369,2]
[385935702,1758137475164,-1559.37,0.00023369,2]
[385935703,1758137475174,-769.68,0.00023369,2]
[385935704,1758137475183,-737.61,0.00023369,2]
[385935705,1758137475193,-568.29,0.00023369,2]
[385935706,1758137475204,-666.35592647,0.00023369,2]
[385935707,1758137475992,-400.0,0.00021998,2]
[385935708,1758137476002,-310.24407353,0.00023369,2]
[385935709,1758137476012,-777.44,0.00023369,2]
[385935710,1758137476022,-876.26,0.00023369,2]
[385935711,1758137476032,-513.48,0.00023369,2]
[385935712,1758137476042,-680.77,0.00023369,2]
[385935713,1758137476052,-492.09,0.00023369,2]
[385935714,1758137476062,-883.58,0.00023369,2]
[385935715,1758137476071,-400.0,0.00023369,2]
[385935716,1758137476081,-400.0,0.00023369,2]
[385935717,1758137476091,-512.24,0.00023369,2]
[385935718,1758137476100,-400.0,0.00023369,2]
[385935719,1758137476110,-3218.82,0.00023369,2]
[385935720,1758137476119,-516.0,0.0002338,2]
[385935721,1758137476129,-168.0,0.00023409,2]
[385935722,1758137476139,-322.6107,0.00023444,2]
[385935723,1758137476149,-248.71531821,0.00023444,2]
[385935724,1758137476159,-151.0,0.00023444,2]
[385935725,1758137476168,-160.0,0.00023444,2]
[385935726,1758137476177,-163.43,0.00023445,2]
[385935727,1758137476187,-487.0,0.00023452,2]
[385935728,1758137476198,-1680.0,0.00023486,2]
[385935729,1758137476208,-400.0,0.00023541,2]
[385935730,1758137476218,-400.0,0.00023542,2]
[385935731,1758137476228,-400.0,0.00023542,2]
[385935732,1758137476238,-400.0,0.00023542,2]
[385935733,1758137476247,-400.0,0.00023542,2]
[385935734,1758137476257,-400.0,0.00023542,2]
[385935735,1758137476267,-400.0,0.00023542,2]
[385935736,1758137476277,-488.59,0.00023542,2]
[385935737,1758137476287,-400.0,0.00023542,2]
[385935738,1758137476297,-400.0,0.00023542,2]
[385935739,1758137476307,-400.0,0.00023542,2]
[385935740,1758137476316,-400.0,0.00023542,2]
[385935741,1758137476325,-435.76,0.00023542,2]
[385935742,1758137476335,-400.0,0.00023542,2]
[385935743,1758137476344,-400.0,0.00023542,2]
[385935744,1758137476353,-400.0,0.00023542,2]
[385935745,1758137476363,-400.0,0.00023542,2]
[385935746,1758137476372,-322.23838043,0.00023542,2]
[385935747,1758137476381,-400.0,0.00023542,2]
[385935748,1758137476391,-400.0,0.00023542,2]
[385935749,1758137476400,-400.0,0.00023542,2]
[385935750,1758137476410,-400.0,0.00023542,2]
[385935751,1758137476419,-400.0,0.00023542,2]
[385935752,1758137476428,-415.91,0.00023542,2]
[385935753,1758137476438,-400.0,0.00023542,2]
[385935754,1758137476449,-400.0,0.00023542,2]
[385935755,1758137476460,-400.0,0.00023542,2]
[385935756,1758137476469,-400.0,0.00023542,2]
[385935757,1758137476479,-400.0,0.00023542,2]
[385935758,1758137476489,-400.0,0.00023542,2]
[385935759,1758137476499,-400.0,0.00023542,2]
[385935760,1758137476509,-400.0,0.00023542,2]
[385935761,1758137476518,-400.0,0.00023542,2]
[385935762,1758137476528,-400.0,0.00023542,2]
[385935763,1758137476538,-400.0,0.00023542,2]
[385935764,1758137476547,-400.0,0.00023542,2]
[385935765,1758137476557,-400.0,0.00023542,2]
[385935766,1758137476566,-400.0,0.00023542,2]
[385935767,1758137476575,-400.0,0.00023542,2]
[385935768,1758137476585,-400.0,0.00023542,2]
[385935769,1758137476594,-400.0,0.00023542,2]
[385935770,1758137476604,-612.38,0.00023542,2]
[385935771,1758137476613,-400.0,0.00023542,2]
[385935772,1758137476622,-431.7,0.00023542,2]
[385935773,1758137476631,-400.0,0.00023542,2]
[385935774,1758137476642,-430.28,0.00023542,2]
[385935775,1758137476651,-400.0,0.00023542,2]
[385935776,1758137476661,-400.0,0.00023542,2]
[385935777,1758137476671,-400.0,0.00023542,2]
[385935778,1758137476680,-400.0,0.00023542,2]
[385935779,1758137476689,-400.0,0.00023542,2]
[385935780,1758137476702,-400.0,0.00023542,2]
[385935781,1758137476713,-400.0,0.00023542,2]
[385935782,1758137476722,-400.0,0.00023542,2]
[385935783,1758137476732,-400.0,0.00023542,2]
[385935784,1758137476742,-400.0,0.00023542,2]
[385935785,1758137476752,-400.0,0.00023542,2]
[385935786,1758137476762,-400.0,0.00023542,2]
[385935787,1758137476772,-400.0,0.00023542,2]
[385935788,1758137476781,-441.41,0.00023542,2]
[385935789,1758137476791,-691.27,0.00023542,2]
[385935790,1758137476800,-708.66,0.00023542,2]
[385935791,1758137476811,-400.0,0.00023542,2]
[385935792,1758137476825,-652.09,0.00023542,2]
[385935793,1758137476834,-568.38,0.00023542,2]
[385935794,1758137476843,-400.0,0.00023542,2]
[385935795,1758137476853,-400.0,0.00023542,2]
[385935796,1758137476863,-421.69,0.00023542,2]
[385935797,1758137476872,-400.0,0.00023542,2]
[385935798,1758137476882,-400.0,0.00023542,2]
[385935799,1758137476892,-400.0,0.00023542,2]
[385935800,1758137476902,-400.0,0.00023542,2]
[385935801,1758137476912,-400.0,0.00023542,2]
[385935802,1758137476921,-1074.46,0.00023542,2]
[385935803,1758137476931,-418.61,0.00023542,2]
[385935804,1758137476940,-400.0,0.00023542,2]
[385935805,1758137476954,-400.0,0.00023542,2]
[385935806,1758137476963,-868.64,0.00023542,2]
[385935807,1758137476973,-400.0,0.00023542,2]
[385935808,1758137476983,-400.0,0.00023542,2]
[385935809,1758137476992,-433.88,0.00023542,2]
[385935810,1758137477002,-467.4,0.00023542,2]
[385935811,1758137477012,-400.0,0.00023542,2]
[385935812,1758137477021,-400.0,0.00023542,2]
[385935813,1758137477031,-1017.1,0.00023542,2]
[385935814,1758137477041,-613.41,0.00023542,2]
[385935815,1758137477051,-400.0,0.00023542,2]
[385935816,1758137477062,-1761.46,0.00023542,2]
[385935817,1758137477071,-480.39,0.00023542,2]
[385935818,1758137477081,-400.0,0.00023542,2]
[385935819,1758137477091,-400.0,0.00023542,2]
[385935820,1758137477100,-400.0,0.00023542,2]
[385935821,1758137477109,-400.0,0.00023542,2]
[385935822,1758137477120,-1821.95,0.00023542,2]
[385935823,1758137477131,-400.0,0.00023542,2]
[385935824,1758137477140,-400.0,0.0002356,2]
[385935825,1758137477149,-400.0,0.0002356,2]
[385935826,1758137477158,-400.0,0.0002356,2]
[385935827,1758137477167,-400.0,0.0002356,2]
[385935828,1758137477177,-400.0,0.0002356,2]
[385935829,1758137477186,-400.0,0.0002356,2]
[385935830,1758137477196,-451.48,0.0002356,2]
[385935831,1758137477209,-189.97,0.0002356,2]
[385935832,1758137477219,-400.0,0.0002356,2]
[385935833,1758137477228,-400.0,0.0002356,2]
[385935834,1758137477237,-400.0,0.0002356,2]
[385935835,1758137477247,-506.83,0.0002356,2]
[385935836,1758137477257,-400.0,0.0002356,2]
[385935837,1758137477266,-400.0,0.0002356,2]
[385935838,1758137477276,-400.0,0.0002356,2]
[385935839,1758137477286,-400.0,0.0002356,2]
[385935840,1758137477296,-381.10338754,0.0002356,2]
[385935841,1758137477305,-400.0,0.0002356,2]
[385935842,1758137477315,-400.0,0.0002356,2]
[385935843,1758137477325,-400.0,0.0002356,2]
[385935844,1758137477334,-400.0,0.0002356,2]
[385935845,1758137477344,-400.0,0.0002356,2]
[385935846,1758137477354,-400.0,0.0002356,2]
[385935847,1758137477363,-400.0,0.0002356,2]
[385935848,1758137477373,-400.0,0.0002356,2]
[385935849,1758137477382,-400.0,0.0002356,2]
[385935850,1758137477392,-400.0,0.0002356,2]
[385935851,1758137477401,-400.0,0.0002356,2]
[385935852,1758137477411,-400.0,0.0002356,2]
[385935853,1758137477420,-400.0,0.0002356,2]
[385935854,1758137477430,-400.0,0.0002356,2]
[385935855,1758137477440,-400.0,0.0002356,2]
[385935856,1758137477454,-354.70828964,0.0002356,2]
[385935857,1758137477464,-400.0,0.0002356,2]
[385935858,1758137477474,-400.0,0.0002356,2]
[385935859,1758137477483,-400.0,0.0002356,2]
[385935860,1758137477493,-400.0,0.0002356,2]
[385935861,1758137477503,-400.0,0.0002356,2]
[385935862,1758137477513,-400.0,0.0002356,2]
[385935863,1758137477522,-400.0,0.0002356,2]
[385935864,1758137477531,-400.0,0.0002356,2]
[385935865,1758137477540,-400.0,0.0002356,2]
[385935866,1758137477549,-400.0,0.0002356,2]
[385935867,1758137477559,-400.0,0.0002356,2]
[385935868,1758137477568,-400.0,0.0002356,2]
[385935869,1758137477578,-400.0,0.0002356,2]
[385935870,1758137477588,-431.22968425,0.0002356,2]
[385935871,1758137477598,-400.0,0.0002356,2]
[385935872,1758137477608,-400.0,0.0002356,2]
[385935873,1758137477617,-400.0,0.0002356,2]
[385935874,1758137477627,-400.0,0.0002356,2]
[385935875,1758137477636,-308.78777702,0.0002356,2]
[385935876,1758137477645,-400.0,0.0002356,2]
[385935877,1758137477655,-400.0,0.0002356,2]
[385935878,1758137477664,-400.0,0.0002356,2]
[385935879,1758137477674,-400.0,0.0002356,2]
[385935880,1758137477684,-400.0,0.0002356,2]
[385935881,1758137477694,-400.0,0.0002356,2]
[385935882,1758137477707,-400.0,0.0002356,2]
[385935883,1758137477717,-400.0,0.0002356,2]
[385935884,1758137477726,-400.0,0.0002356,2]
[385935885,1758137477736,-400.0,0.0002356,2]
[385935886,1758137477746,-400.0,0.0002356,2]
[385935887,1758137477756,-464.39,0.0002356,2]
[385935888,1758137477765,-400.0,0.0002356,2]
[385935889,1758137477774,-400.0,0.0002356,2]
[385935890,1758137477784,-427.47,0.0002356,2]
[385935891,1758137477793,-400.0,0.0002356,2]
[385935892,1758137477803,-400.0,0.0002356,2]
[385935893,1758137477812,-400.0,0.0002356,2]
[385935894,1758137477826,-540.88552528,0.0002356,2]
[385935895,1758137477835,-400.0,0.00023561,2]
[385935896,1758137477844,-400.0,0.00023561,2]
[385935897,1758137477854,-400.0,0.00023561,2]
[385935898,1758137477863,-602.7,0.00023561,2]
[385935899,1758137477873,-400.0,0.00023561,2]
[385935900,1758137477883,-435.38,0.00023561,2]
[385935901,1758137477892,-400.0,0.00023561,2]
[385935902,1758137477901,-400.0,0.00023561,2]
[385935903,1758137477912,-400.0,0.00023561,2]
[385935904,1758137477922,-400.0,0.00023561,2]
[385935905,1758137477932,-400.0,0.00023561,2]
[385935906,1758137477942,-400.0,0.00023561,2]
[385935907,1758137477955,-3002.02,0.00023561,2]
[385935908,1758137477965,-400.0,0.00023561,2]
[385935909,1758137477974,-400.0,0.00023561,2]
[385935910,1758137477984,-400.0,0.00023561,2]
[385935911,1758137477994,-400.0,0.00023561,2]
[385935912,1758137478004,-400.0,0.00023561,2]
[385935913,1758137478013,-400.0,0.00023561,2]
[385935914,1758137478023,-400.0,0.00023561,2]
[385935915,1758137478033,-400.0,0.00023561,2]
[385935916,1758137478042,-400.0,0.00023561,2]
[385935917,1758137478052,-400.0,0.00023561,2]
[385935918,1758137478062,-400.0,0.00023561,2]
[385935919,1758137478072,-400.0,0.00023561,2]
[385935920,1758137478082,-400.0,0.00023561,2]
[385935921,1758137478092,-450.53,0.00023561,2]